[Event "*** SCC Grand Prix: Titled Tuesday Blitz"]
[Site "Chess.com"]
[Date "2020.09.29"]
[Round "8"]
[White "shriyanasmallya"]
[Black "IngOscarArdila"]
[Result "1/2-1/2"]
[WhiteElo "1608"]
[BlackElo "2146"]
[TimeControl "180+1"]
[EndTime "11:35:00 PDT"]
[Termination "Game drawn by repetition"]

1. e4 {[%clk 0:03:00.9]} 1... e5 {[%clk 0:02:58.8]} 2. Nf3 {[%clk 0:02:59.1]}
2... Nc6 {[%clk 0:02:59.3]} 3. d4 {[%clk 0:02:57.9]} 3... exd4 {[%clk
0:02:59.1]} 4. Nxd4 {[%clk 0:02:57.7]} 4... Nf6 {[%clk 0:02:58.4]} 5. Nc3 {[%clk
0:02:56.8]} 5... Bb4 {[%clk 0:02:58]} 6. Nxc6 {[%clk 0:02:53.2]} 6... bxc6
{[%clk 0:02:58.9]} 7. Bd3 {[%clk 0:02:53.3]} 7... d5 {[%clk 0:02:59.1]} 8. exd5
{[%clk 0:02:53.2]} 8... cxd5 {[%clk 0:03:00]} 9. O-O {[%clk 0:02:52.8]} 9... O-O
{[%clk 0:02:59.9]} 10. Bg5 {[%clk 0:02:52.2]} 10... c6 {[%clk 0:03:00.4]} 11. h3
{[%clk 0:02:51]} 11... Bd6 {[%clk 0:02:59.9]} 12. Qf3 {[%clk 0:02:50.5]} 12...
h6 {[%clk 0:02:59.5]} 13. Bxf6 {[%clk 0:02:46.1]} 13... Qxf6 {[%clk 0:03:00.4]}
14. Qxf6 {[%clk 0:02:45.8]} 14... gxf6 {[%clk 0:03:01.3]} 15. Rad1 {[%clk
0:02:44.4]} 15... Be5 {[%clk 0:03:00.6]} 16. f4 {[%clk 0:02:38.4]} 16... Bd4+
{[%clk 0:02:59.7]} 17. Kh2 {[%clk 0:02:37.8]} 17... Rb8 {[%clk 0:03:00.2]} 18.
Bh7+ {[%clk 0:02:33.8]} 18... Kxh7 {[%clk 0:02:57.7]} 19. Rxd4 {[%clk
0:02:34.3]} 19... Rxb2 {[%clk 0:02:57.6]} 20. Rd2 {[%clk 0:02:29.6]} 20... Bf5
{[%clk 0:02:56.6]} 21. Rff2 {[%clk 0:02:27.3]} 21... d4 {[%clk 0:02:52]} 22.
Rxd4 {[%clk 0:02:25.2]} 22... Rxc2 {[%clk 0:02:48.5]} 23. Rxc2 {[%clk
0:02:24.4]} 23... Bxc2 {[%clk 0:02:49.4]} 24. Rd6 {[%clk 0:02:23.5]} 24... c5
{[%clk 0:02:42.9]} 25. Rxf6 {[%clk 0:02:22.3]} 25... Kg7 {[%clk 0:02:42.6]} 26.
Rc6 {[%clk 0:02:21.4]} 26... Rd8 {[%clk 0:02:35.8]} 27. Rxc5 {[%clk 0:02:20.7]}
27... Rd2 {[%clk 0:02:35.9]} 28. Ra5 {[%clk 0:02:15.4]} 28... Rd3 {[%clk
0:02:31.1]} 29. Ne4 {[%clk 0:02:10.5]} 29... Rd4 {[%clk 0:02:24.2]} 30. Ng3
{[%clk 0:02:04.6]} 30... Rd7 {[%clk 0:02:17.6]} 31. f5 {[%clk 0:01:58.8]} 31...
Kf6 {[%clk 0:02:15.4]} 32. Nh5+ {[%clk 0:01:58.7]} 32... Kg5 {[%clk 0:02:11.5]}
33. Ng3 {[%clk 0:01:58.7]} 33... f6 {[%clk 0:02:07.4]} 34. Nf1 {[%clk
0:01:54.5]} 34... Bxf5 {[%clk 0:02:05.6]} 35. g4 {[%clk 0:01:52.1]} 35... Rd1
{[%clk 0:02:04.4]} 36. Rxf5+ {[%clk 0:01:50.9]} 36... Kg6 {[%clk 0:02:05]} 37.
Ne3 {[%clk 0:01:47.3]} 37... Rd2+ {[%clk 0:02:04.9]} 38. Kg3 {[%clk 0:01:47.7]}
38... Rxa2 {[%clk 0:02:05]} 39. h4 {[%clk 0:01:44.9]} 39... Ra3 {[%clk
0:02:00.1]} 40. Kf3 {[%clk 0:01:44.5]} 40... a5 {[%clk 0:01:58.6]} 41. h5+
{[%clk 0:01:43]} 41... Kg7 {[%clk 0:01:58.2]} 42. Kf4 {[%clk 0:01:43.3]} 42...
Ra4+ {[%clk 0:01:56.4]} 43. Kf3 {[%clk 0:01:39.9]} 43... Ra1 {[%clk 0:01:56.4]}
44. Nc4 {[%clk 0:01:34.6]} 44... a4 {[%clk 0:01:55.8]} 45. Ra5 {[%clk
0:01:33.7]} 45... Kf7 {[%clk 0:01:52.8]} 46. Nb6 {[%clk 0:01:27.2]} 46... a3
{[%clk 0:01:51.9]} 47. Nc4 {[%clk 0:01:26.9]} 47... a2 {[%clk 0:01:52.1]} 48.
Kg2 {[%clk 0:01:25]} 48... Ke6 {[%clk 0:01:48.1]} 49. Nd2 {[%clk 0:01:17.7]}
49... Kd6 {[%clk 0:01:34.2]} 50. Nb3 {[%clk 0:01:11.3]} 50... Rb1 {[%clk
0:01:33.7]} 51. Ra6+ {[%clk 0:01:04.8]} 51... Ke5 {[%clk 0:01:32.2]} 52. Rxa2
{[%clk 0:00:41.7]} 52... Rxb3 {[%clk 0:01:31.4]} 53. Ra4 {[%clk 0:00:41.2]}
53... Rd3 {[%clk 0:01:25.4]} 54. Rb4 {[%clk 0:00:39]} 54... Re3 {[%clk
0:01:10.5]} 55. Kf2 {[%clk 0:00:37.2]} 55... Ra3 {[%clk 0:01:09.8]} 56. Rc4
{[%clk 0:00:34.1]} 56... Kd5 {[%clk 0:01:09.2]} 57. Rf4 {[%clk 0:00:34]} 57...
Ke5 {[%clk 0:01:03.9]} 58. Rf5+ {[%clk 0:00:34]} 58... Ke6 {[%clk 0:01:02.8]}
59. Rb5 {[%clk 0:00:33.2]} 59... Rh3 {[%clk 0:01:00]} 60. Kg2 {[%clk 0:00:30.2]}
60... Rc3 {[%clk 0:00:58.9]} 61. Ra5 {[%clk 0:00:25.4]} 61... Kd6 {[%clk
0:00:55.5]} 62. Rb5 {[%clk 0:00:21]} 62... Re3 {[%clk 0:00:47.9]} 63. Rf5 {[%clk
0:00:19.3]} 63... Ke6 {[%clk 0:00:47.3]} 64. Ra5 {[%clk 0:00:19]} 64... Re5
{[%clk 0:00:42.3]} 65. Rxe5+ {[%clk 0:00:17.9]} 65... fxe5 {[%clk 0:00:35.2]}
66. Kf3 {[%clk 0:00:18]} 66... Kf6 {[%clk 0:00:34.3]} 67. Ke4 {[%clk 0:00:18.2]}
67... Kg5 {[%clk 0:00:34.6]} 68. Kf3 {[%clk 0:00:17.4]} 68... e4+ {[%clk
0:00:33]} 69. Kxe4 {[%clk 0:00:17.8]} 69... Kxg4 {[%clk 0:00:33.9]} 70. Ke3
{[%clk 0:00:17.1]} 70... Kxh5 {[%clk 0:00:34.8]} 71. Kf2 {[%clk 0:00:17.4]}
71... Kh4 {[%clk 0:00:35.7]} 72. Kg2 {[%clk 0:00:16.6]} 72... Kg4 {[%clk
0:00:35.2]} 73. Kh2 {[%clk 0:00:16.1]} 73... Kf3 {[%clk 0:00:35.4]} 74. Kg1
{[%clk 0:00:15.7]} 74... Kg3 {[%clk 0:00:35.6]} 75. Kh1 {[%clk 0:00:15.8]} 75...
Kh3 {[%clk 0:00:35.9]} 76. Kg1 {[%clk 0:00:16.1]} 76... h5 {[%clk 0:00:35.9]}
77. Kf2 {[%clk 0:00:16.3]} 77... Kh2 {[%clk 0:00:36]} 78. Kf1 {[%clk 0:00:16.3]}
78... Kh1 {[%clk 0:00:36]} 79. Kf2 {[%clk 0:00:16.5]} 79... h4 {[%clk
0:00:35.5]} 80. Kf1 {[%clk 0:00:16.2]} 80... Kh2 {[%clk 0:00:35.3]} 81. Kf2
{[%clk 0:00:16.7]} 81... Kh3 {[%clk 0:00:34.2]} 82. Kg1 {[%clk 0:00:17]} 82...
Kg3 {[%clk 0:00:33.2]} 83. Kh1 {[%clk 0:00:17.6]} 83... h3 {[%clk 0:00:33.5]}
84. Kg1 {[%clk 0:00:18.2]} 84... Kh4 {[%clk 0:00:32.7]} 85. Kh1 {[%clk
0:00:18.6]} 85... Kg4 {[%clk 0:00:32.7]} 86. Kg1 {[%clk 0:00:19.2]} 86... Kg3
{[%clk 0:00:32.8]} 87. Kh1 {[%clk 0:00:19.5]} 87... Kf3 {[%clk 0:00:33.3]} 88.
Kh2 {[%clk 0:00:20.1]} 88... Kg4 {[%clk 0:00:33.6]} 89. Kg1 {[%clk 0:00:20.3]}
89... Kg3 {[%clk 0:00:32.7]} 90. Kh1 {[%clk 0:00:20.8]} 90... Kh4 {[%clk
0:00:32.9]} 91. Kh2 {[%clk 0:00:21.3]} 91... Kg4 {[%clk 0:00:33.3]} 92. Kg1
{[%clk 0:00:21.9]} 1/2-1/2

[Event "*** SCC Grand Prix: Titled Tuesday Blitz"]
[Site "Chess.com"]
[Date "2020.09.29"]
[Round "8"]
[White "MVM2008"]
[Black "dyziotomi99"]
[Result "0-1"]
[WhiteElo "2240"]
[BlackElo "2479"]
[TimeControl "180+1"]
[EndTime "11:35:05 PDT"]
[Termination "dyziotomi99 won by resignation"]

1. e4 {[%clk 0:03:00.9]} 1... c5 {[%clk 0:02:59]} 2. Nf3 {[%clk 0:03:00.6]} 2...
Nc6 {[%clk 0:02:59]} 3. d4 {[%clk 0:02:56.8]} 3... cxd4 {[%clk 0:02:57.1]} 4.
Bc4 {[%clk 0:02:52.5]} 4... e6 {[%clk 0:02:51.5]} 5. Nxd4 {[%clk 0:02:43.6]}
5... Nf6 {[%clk 0:02:50]} 6. Nxc6 {[%clk 0:02:34]} 6... bxc6 {[%clk 0:02:49.2]}
7. Nc3 {[%clk 0:02:34.1]} 7... d5 {[%clk 0:02:47.3]} 8. exd5 {[%clk 0:02:33.3]}
8... cxd5 {[%clk 0:02:47.8]} 9. Bb5+ {[%clk 0:02:25.3]} 9... Bd7 {[%clk
0:02:47.9]} 10. Bxd7+ {[%clk 0:02:24]} 10... Qxd7 {[%clk 0:02:47.4]} 11. O-O
{[%clk 0:02:23.3]} 11... Bd6 {[%clk 0:02:47.1]} 12. Bg5 {[%clk 0:02:21.4]} 12...
Be7 {[%clk 0:02:28.9]} 13. f4 {[%clk 0:02:12.6]} 13... O-O {[%clk 0:02:28.1]}
14. f5 {[%clk 0:02:08.6]} 14... h6 {[%clk 0:02:24.8]} 15. Bf4 {[%clk 0:01:56.8]}
15... exf5 {[%clk 0:02:17.5]} 16. Be5 {[%clk 0:01:51.7]} 16... Ne4 {[%clk
0:02:08.9]} 17. Nxd5 {[%clk 0:01:34.7]} 17... Bc5+ {[%clk 0:02:00.4]} 18. Kh1
{[%clk 0:01:32.7]} 18... Rad8 {[%clk 0:01:52.8]} 19. c4 {[%clk 0:01:09.7]} 19...
Nf2+ {[%clk 0:01:51.3]} 20. Rxf2 {[%clk 0:01:08.9]} 20... Bxf2 {[%clk
0:01:51.9]} 21. Qf3 {[%clk 0:01:03.8]} 21... f6 {[%clk 0:01:38.2]} 22. Bc7
{[%clk 0:00:54.1]} 22... Bd4 {[%clk 0:01:15.9]} 23. Bxd8 {[%clk 0:00:46.4]}
23... Rxd8 {[%clk 0:01:14]} 24. Rd1 {[%clk 0:00:42.3]} 24... Qe6 {[%clk
0:00:41.5]} 25. Qd3 {[%clk 0:00:27.3]} 25... Bb6 {[%clk 0:00:33.2]} 26. g3
{[%clk 0:00:16.3]} 26... Kh8 {[%clk 0:00:24.5]} 27. Qf3 {[%clk 0:00:11.3]} 27...
Re8 {[%clk 0:00:18.4]} 28. Nf4 {[%clk 0:00:09.5]} 28... Qxc4 {[%clk 0:00:15.4]}
29. Rd7 {[%clk 0:00:03.8]} 29... Qe4 {[%clk 0:00:10.8]} 30. Ng6+ {[%clk
0:00:02.5]} 30... Kh7 {[%clk 0:00:11]} 31. Qxe4 {[%clk 0:00:01.6]} 31... fxe4
{[%clk 0:00:11.3]} 32. Nf4 {[%clk 0:00:01.1]} 32... e3 {[%clk 0:00:11.8]} 33.
Ne2 {[%clk 0:00:01.7]} 33... Rc8 {[%clk 0:00:11.4]} 34. Rd3 {[%clk 0:00:02.4]}
34... Rc2 {[%clk 0:00:11.4]} 35. Nf4 {[%clk 0:00:02.5]} 35... Rxb2 {[%clk
0:00:11.2]} 36. Rd1 {[%clk 0:00:01.7]} 36... Rxa2 {[%clk 0:00:10.5]} 37. Re1
{[%clk 0:00:02.2]} 37... g5 {[%clk 0:00:09.3]} 38. Nd5 {[%clk 0:00:01.6]} 38...
Ra3 {[%clk 0:00:08.1]} 39. Nxf6+ {[%clk 0:00:01.8]} 39... Kg6 {[%clk 0:00:08.8]}
40. Nd5 {[%clk 0:00:02.2]} 40... Rd3 {[%clk 0:00:07.6]} 41. Nxb6 {[%clk
0:00:01.9]} 41... axb6 {[%clk 0:00:07.7]} 42. Kg2 {[%clk 0:00:02.8]} 42... b5
{[%clk 0:00:07.7]} 43. Kf3 {[%clk 0:00:03]} 43... Rd2 {[%clk 0:00:08.2]} 44.
Kxe3 {[%clk 0:00:03.2]} 44... Rxh2 {[%clk 0:00:08.3]} 45. Rb1 {[%clk 0:00:03.7]}
45... Ra2 {[%clk 0:00:05.2]} 46. Rxb5 {[%clk 0:00:03.7]} 46... Ra3+ {[%clk
0:00:05.6]} 47. Kf2 {[%clk 0:00:04.5]} 47... Kh5 {[%clk 0:00:05.6]} 48. Kg2
{[%clk 0:00:04.7]} 48... Ra4 {[%clk 0:00:04.8]} 49. Rb3 {[%clk 0:00:03.8]} 49...
Kg4 {[%clk 0:00:04.9]} 50. Rc3 {[%clk 0:00:03.5]} 50... Ra2+ {[%clk 0:00:05.2]}
51. Kg1 {[%clk 0:00:03.4]} 51... h5 {[%clk 0:00:05.9]} 52. Kf1 {[%clk
0:00:03.1]} 52... Rb2 {[%clk 0:00:05.1]} 53. Kg1 {[%clk 0:00:03.2]} 53... Rd2
{[%clk 0:00:05.7]} 54. Kf1 {[%clk 0:00:03.5]} 54... Rh2 {[%clk 0:00:05.9]} 55.
Kg1 {[%clk 0:00:03.7]} 55... Ra2 {[%clk 0:00:06.1]} 56. Kf1 {[%clk 0:00:04]}
56... Ra4 {[%clk 0:00:06.5]} 57. Kg1 {[%clk 0:00:04.3]} 57... Re4 {[%clk
0:00:06.8]} 58. Kg2 {[%clk 0:00:04.5]} 58... Re2+ {[%clk 0:00:06.8]} 59. Kf1
{[%clk 0:00:04.8]} 59... Rd2 {[%clk 0:00:07.2]} 60. Kg1 {[%clk 0:00:04.7]} 60...
Rd1+ {[%clk 0:00:07.7]} 61. Kf2 {[%clk 0:00:05]} 61... Rd2+ {[%clk 0:00:08.3]}
62. Kg1 {[%clk 0:00:05.1]} 62... Rb2 {[%clk 0:00:09]} 63. Kf1 {[%clk 0:00:05.4]}
63... Kh3 {[%clk 0:00:09.5]} 64. Kg1 {[%clk 0:00:03.9]} 64... Rb1+ {[%clk
0:00:09.3]} 65. Kf2 {[%clk 0:00:04.2]} 65... g4 {[%clk 0:00:09.8]} 66. Rc5
{[%clk 0:00:03.7]} 66... Rb2+ {[%clk 0:00:10.3]} 67. Kf1 {[%clk 0:00:03.7]}
67... Kxg3 {[%clk 0:00:10.8]} 68. Rxh5 {[%clk 0:00:03.7]} 68... Rb1+ {[%clk
0:00:11.3]} 69. Ke2 {[%clk 0:00:04.2]} 69... Kg2 {[%clk 0:00:11.9]} 70. Rh8
{[%clk 0:00:03.9]} 70... g3 {[%clk 0:00:12.3]} 71. Rg8 {[%clk 0:00:04.3]} 71...
Rb6 {[%clk 0:00:12.2]} 72. Rg7 {[%clk 0:00:03]} 72... Re6+ {[%clk 0:00:12.4]}
73. Kd3 {[%clk 0:00:02.4]} 73... Re5 {[%clk 0:00:12.5]} 74. Kd4 {[%clk
0:00:02.3]} 74... Re1 {[%clk 0:00:12.7]} 75. Kd3 {[%clk 0:00:02.2]} 75... Re6
{[%clk 0:00:10.7]} 76. Kd2 {[%clk 0:00:01.7]} 76... Re5 {[%clk 0:00:09.9]} 77.
Kd3 {[%clk 0:00:01.7]} 77... Kf3 {[%clk 0:00:10.3]} 78. Rf7+ {[%clk 0:00:01.4]}
78... Kg2 {[%clk 0:00:10.4]} 79. Rg7 {[%clk 0:00:01.6]} 79... Kf2 {[%clk
0:00:10.7]} 80. Rf7+ {[%clk 0:00:02]} 80... Kg1 {[%clk 0:00:10.4]} 81. Kd4
{[%clk 0:00:02.6]} 81... Re1 {[%clk 0:00:10.2]} 82. Kd3 {[%clk 0:00:02.7]} 82...
g2 {[%clk 0:00:10.8]} 83. Kd2 {[%clk 0:00:02.6]} 83... Re4 {[%clk 0:00:10.3]}
84. Rg7 {[%clk 0:00:02.7]} 84... Kf2 {[%clk 0:00:09.8]} 85. Rf7+ {[%clk
0:00:02.4]} 85... Kg3 {[%clk 0:00:10.3]} 86. Rg7+ {[%clk 0:00:02.4]} 86... Rg4
{[%clk 0:00:10.6]} 0-1

[Event "*** SCC Grand Prix: Titled Tuesday Blitz"]
[Site "Chess.com"]
[Date "2020.09.29"]
[Round "8"]
[White "norwaytoadog"]
[Black "dopolian"]
[Result "1/2-1/2"]
[WhiteElo "2333"]
[BlackElo "2432"]
[TimeControl "180+1"]
[EndTime "11:35:35 PDT"]
[Termination "Game drawn by repetition"]

1. e4 {[%clk 0:02:59.9]} 1... e5 {[%clk 0:02:44.7]} 2. Nf3 {[%clk 0:02:59.3]}
2... Nc6 {[%clk 0:02:44.9]} 3. Bb5 {[%clk 0:02:59.4]} 3... a6 {[%clk 0:02:45.2]}
4. Ba4 {[%clk 0:02:59.8]} 4... Nf6 {[%clk 0:02:45.4]} 5. O-O {[%clk 0:02:59.8]}
5... Nxe4 {[%clk 0:02:45.9]} 6. d4 {[%clk 0:02:59.4]} 6... b5 {[%clk 0:02:46]}
7. Bb3 {[%clk 0:02:59.3]} 7... d5 {[%clk 0:02:46.3]} 8. dxe5 {[%clk 0:02:59.6]}
8... Be6 {[%clk 0:02:47]} 9. Nbd2 {[%clk 0:02:58.9]} 9... Be7 {[%clk 0:02:47.2]}
10. Re1 {[%clk 0:02:51]} 10... Nc5 {[%clk 0:02:44.7]} 11. h3 {[%clk 0:02:32.3]}
11... O-O {[%clk 0:02:43.4]} 12. Nf1 {[%clk 0:02:31.2]} 12... d4 {[%clk
0:02:33.8]} 13. Bxe6 {[%clk 0:02:27.3]} 13... fxe6 {[%clk 0:02:28.6]} 14. Ng3
{[%clk 0:02:22.9]} 14... Qd5 {[%clk 0:02:27.2]} 15. Bg5 {[%clk 0:02:04.7]} 15...
Bxg5 {[%clk 0:02:22]} 16. Nxg5 {[%clk 0:02:03.6]} 16... Nxe5 {[%clk 0:01:58.4]}
17. Nxh7 {[%clk 0:01:47.8]} 17... Rf4 {[%clk 0:01:24.7]} 18. Ng5 {[%clk
0:01:19]} 18... Nf7 {[%clk 0:01:08.7]} 19. Nxf7 {[%clk 0:01:13.8]} 19... Rxf7
{[%clk 0:01:09.6]} 20. Qg4 {[%clk 0:01:09.4]} 20... Raf8 {[%clk 0:01:07.4]} 21.
f3 {[%clk 0:01:09]} 21... Rf4 {[%clk 0:01:03.6]} 22. Qg6 {[%clk 0:01:06.3]}
22... R4f6 {[%clk 0:00:55.2]} 23. Qg4 {[%clk 0:01:03.2]} 23... Rf4 {[%clk
0:00:32.2]} 24. Qh5 {[%clk 0:01:02.8]} 24... Qxh5 {[%clk 0:00:31.3]} 25. Nxh5
{[%clk 0:01:02.9]} 25... R4f5 {[%clk 0:00:31.1]} 26. Ng3 {[%clk 0:01:02.1]}
26... Rd5 {[%clk 0:00:31.3]} 27. Ne4 {[%clk 0:01:01]} 27... Nxe4 {[%clk
0:00:28.8]} 28. Rxe4 {[%clk 0:01:01.3]} 28... e5 {[%clk 0:00:27.8]} 29. Rd1
{[%clk 0:00:59.9]} 29... Rf5 {[%clk 0:00:28.4]} 30. Kf2 {[%clk 0:00:58.5]} 30...
c5 {[%clk 0:00:27.7]} 31. Ke2 {[%clk 0:00:57.6]} 31... Kf7 {[%clk 0:00:27.5]}
32. h4 {[%clk 0:00:57.5]} 32... Rf4 {[%clk 0:00:24.9]} 33. Rxf4+ {[%clk
0:00:36.3]} 33... exf4 {[%clk 0:00:25.8]} 34. c3 {[%clk 0:00:36]} 34... Re5+
{[%clk 0:00:21.2]} 35. Kd2 {[%clk 0:00:27.1]} 35... dxc3+ {[%clk 0:00:15.4]} 36.
Kxc3 {[%clk 0:00:23.3]} 36... Re3+ {[%clk 0:00:11.2]} 37. Kd2 {[%clk 0:00:22.9]}
37... Ke6 {[%clk 0:00:08.5]} 38. Rc1 {[%clk 0:00:22.4]} 38... c4 {[%clk
0:00:08.4]} 39. a3 {[%clk 0:00:18.5]} 39... Kd5 {[%clk 0:00:07.5]} 40. Rh1
{[%clk 0:00:18.6]} 40... Rd3+ {[%clk 0:00:05.7]} 41. Kc2 {[%clk 0:00:18.4]}
41... Re3 {[%clk 0:00:06.2]} 42. Kd2 {[%clk 0:00:18]} 42... Kd4 {[%clk
0:00:06.7]} 43. h5 {[%clk 0:00:17.3]} 43... Rb3 {[%clk 0:00:06.5]} 44. Kc2
{[%clk 0:00:17.1]} 44... Re3 {[%clk 0:00:06.8]} 45. Kd2 {[%clk 0:00:16.9]} 45...
c3+ {[%clk 0:00:07.4]} 46. bxc3+ {[%clk 0:00:16.8]} 46... Rxc3 {[%clk
0:00:08.3]} 47. Rh4 {[%clk 0:00:16.5]} 47... Rxa3 {[%clk 0:00:07.4]} 48. Rxf4+
{[%clk 0:00:16.7]} 48... Ke5 {[%clk 0:00:08]} 49. Rf7 {[%clk 0:00:16.1]} 49...
Ra2+ {[%clk 0:00:06.9]} 50. Ke3 {[%clk 0:00:16.6]} 50... Rxg2 {[%clk 0:00:07]}
51. Ra7 {[%clk 0:00:15.5]} 51... Ra2 {[%clk 0:00:05.1]} 52. Rxg7 {[%clk
0:00:15.2]} 52... Kf6 {[%clk 0:00:04.7]} 53. Rg6+ {[%clk 0:00:15.1]} 53... Kf7
{[%clk 0:00:04.5]} 54. Rb6 {[%clk 0:00:15.2]} 54... Kg7 {[%clk 0:00:04.1]} 55.
Kf4 {[%clk 0:00:14.7]} 55... Ra4+ {[%clk 0:00:03.8]} 56. Kf5 {[%clk 0:00:14.7]}
56... b4 {[%clk 0:00:03.3]} 57. h6+ {[%clk 0:00:13.2]} 57... Kh7 {[%clk
0:00:03.3]} 58. Kg5 {[%clk 0:00:12.8]} 58... Ra5+ {[%clk 0:00:03.6]} 59. Kg4
{[%clk 0:00:12.1]} 59... Rb5 {[%clk 0:00:04]} 60. Rxa6 {[%clk 0:00:11.7]} 60...
b3 {[%clk 0:00:04.6]} 61. Ra1 {[%clk 0:00:10.5]} 61... Kxh6 {[%clk 0:00:04.9]}
62. Rb1 {[%clk 0:00:09.8]} 62... Kg6 {[%clk 0:00:04.8]} 63. Kf4 {[%clk 0:00:10]}
63... Kf6 {[%clk 0:00:05.2]} 64. Ke4 {[%clk 0:00:10.4]} 64... Kg5 {[%clk
0:00:05.7]} 65. Kd4 {[%clk 0:00:09.4]} 65... Kf4 {[%clk 0:00:06]} 66. Kc3 {[%clk
0:00:08.9]} 66... Kxf3 {[%clk 0:00:05.5]} 67. Rxb3 {[%clk 0:00:08.9]} 67... Rf5
{[%clk 0:00:04.3]} 68. Kd4+ {[%clk 0:00:08.7]} 68... Kf4 {[%clk 0:00:04.8]} 69.
Rb8 {[%clk 0:00:07.9]} 69... Rf7 {[%clk 0:00:04.3]} 70. Rb6 {[%clk 0:00:07.9]}
70... Rd7+ {[%clk 0:00:04.3]} 71. Kc5 {[%clk 0:00:08.1]} 71... Ke5 {[%clk
0:00:04.7]} 72. Rb3 {[%clk 0:00:07.6]} 72... Rd1 {[%clk 0:00:04.9]} 73. Re3+
{[%clk 0:00:07.5]} 73... Kf4 {[%clk 0:00:05.6]} 74. Re8 {[%clk 0:00:07.4]} 74...
Rd7 {[%clk 0:00:05.7]} 75. Kc6 {[%clk 0:00:07.6]} 75... Rd1 {[%clk 0:00:05.5]}
76. Rf8+ {[%clk 0:00:07.9]} 76... Ke5 {[%clk 0:00:04.9]} 77. Re8+ {[%clk
0:00:08.3]} 77... Kf6 {[%clk 0:00:04.7]} 78. Rf8+ {[%clk 0:00:08.6]} 78... Ke7
{[%clk 0:00:05.3]} 79. Rf3 {[%clk 0:00:08.5]} 79... Rc1+ {[%clk 0:00:05.8]} 80.
Kd5 {[%clk 0:00:08.7]} 80... Rd1+ {[%clk 0:00:05.5]} 81. Kc4 {[%clk 0:00:09.1]}
81... Kd7 {[%clk 0:00:05.8]} 82. Rf7+ {[%clk 0:00:08.8]} 82... Ke6 {[%clk
0:00:05.4]} 83. Rf3 {[%clk 0:00:09.1]} 83... Rc1+ {[%clk 0:00:05.4]} 84. Kd3
{[%clk 0:00:09.2]} 84... Rd1+ {[%clk 0:00:05.5]} 85. Ke2 {[%clk 0:00:09.4]}
85... Ra1 {[%clk 0:00:05.8]} 86. Re3+ {[%clk 0:00:09.8]} 86... Kd5 {[%clk
0:00:05.8]} 87. Rd3+ {[%clk 0:00:10.2]} 87... Kc4 {[%clk 0:00:06.4]} 88. Rd8
{[%clk 0:00:10.1]} 88... Ra2+ {[%clk 0:00:06.1]} 89. Ke3 {[%clk 0:00:10.3]}
89... Rh2 {[%clk 0:00:07]} 90. Rc8+ {[%clk 0:00:10.3]} 90... Kd5 {[%clk
0:00:07.6]} 91. Rd8+ {[%clk 0:00:10.6]} 91... Ke6 {[%clk 0:00:08.2]} 92. Re8+
{[%clk 0:00:10.9]} 92... Kf7 {[%clk 0:00:08.8]} 93. Re4 {[%clk 0:00:10.9]} 93...
Rh3+ {[%clk 0:00:09.1]} 94. Kd4 {[%clk 0:00:11.3]} 94... Ra3 {[%clk 0:00:10]}
95. Rf4+ {[%clk 0:00:11.2]} 95... Ke6 {[%clk 0:00:10]} 96. Re4+ {[%clk
0:00:11.6]} 96... Kd6 {[%clk 0:00:10.5]} 97. Re1 {[%clk 0:00:11.9]} 97... Ra4+
{[%clk 0:00:10.8]} 98. Kc3 {[%clk 0:00:12]} 98... Rh4 {[%clk 0:00:11.7]} 99. Rg1
{[%clk 0:00:11.9]} 99... Kc5 {[%clk 0:00:10.5]} 100. Rg5+ {[%clk 0:00:12]}
100... Kd6 {[%clk 0:00:10.3]} 101. Rg6+ {[%clk 0:00:12]} 101... Kd5 {[%clk
0:00:10.3]} 102. Rg5+ {[%clk 0:00:12.3]} 102... Kd6 {[%clk 0:00:10.5]} 103. Rg6+
{[%clk 0:00:12.7]} 103... Kd5 {[%clk 0:00:11.1]} 104. Rg5+ {[%clk 0:00:13.2]}
104... Kd6 {[%clk 0:00:11.7]} 1/2-1/2